Cogmind - Beta 10.2 @@@ ROGUE MODE // 2022.01.24 @ 13:55:51 Player: lumberblack Result: Destroyed by G-47 Trooper with Particle Gun Performance ------------- Evolutions (0) 0 Regions Visited (4) 800 Robots Destroyed (22) 110 Value Destroyed (284) 284 Prototype IDs (0) 0 Alien Tech Used (0) 0 Bonus (-172) -172 TOTAL SCORE: 1022 Bonus ------- Follower Combat Kills 60 Friendly Fire -232 Cogmind --------- Core Integrity 0/250 Matter 300/300 Energy 100/100 System Corruption 0% Temperature Cool (9) Movement Core (550) Ox10 Location -9/Mines Parts ------- > --- POWER (1) -------- (None) > --- PROPULSION (2) --- (None) > --- UTILITY (2) ------ High-capacity Storage Unit > --- WEAPON (2) ------- (None) > --- INVENTORY (12) --- Improved Ion Engine Improved Heat Sink Medium Storage Unit Medium Storage Unit Large Storage Unit High-capacity Storage Unit High-capacity Matter Pod (200) Light Armor Plating Grenade Launcher Mining Laser Plasma Cutter Peak State ------------ > --- POWER ------------ Improved Ion Engine > --- PROPULSION ------- Light Treads Compact Wheel > --- UTILITY ---------- High-capacity Storage Unit High-capacity Storage Unit > --- WEAPON ----------- Medium Laser Medium Laser > --- INVENTORY -------- Ion Engine Light Ion Engine Improved Ion Engine Improved Ion Engine Improved Ion Engine Light Treads Light Assault Rifle Grenade Launcher Mining Laser Plasma Cutter Plasma Cutter Plasma Cutter Plasma Cutter [Rating: 10] Favorites ----------- Power Improved Ion Engine Engine Improved Ion Engine Propulsion Light Treads Treads Light Treads Leg Aluminum Leg Wheel Compact Wheel Utility High-capacity Storage Unit Device Improved Terrain Scanner Storage High-capacity Storage Unit Protection Light Armor Plating Weapon Small Laser Energy Gun Small Laser Ballistic Gun Light Assault Rifle Launcher Grenade Launcher Special Weapon Mining Laser Build | -11 -10 -10 -10 -9 ------- Run | Scr Mat Min Exi Min Slots Evolved . | . . . . . Power . | . . . . . Propulsion . | . . . . . Utility . | . . . . . Weapon . | . . . . . Parts Attached 26 | 4 11 9 . 2 Power 4 | . 2 . . 2 Engine 4 | . 2 . . 2 Core . | . . . . . Reactor . | . . . . . Propulsion 7 | 2 3 2 . . Treads 4 | 1 2 1 . . Leg . | . . . . . Wheel 3 | 1 1 1 . . Hover . | . . . . . Flight . | . . . . . Utility 4 | 1 3 . . . Device 1 | 1 . . . . Storage 2 | . 2 . . . Processor . | . . . . . Hackware . | . . . . . Protection 1 | . 1 . . . Artifact . | . . . . . Weapon 11 | 1 3 7 . . Energy Gun 7 | 1 1 5 . . Energy Cannon . | . . . . . Ballistic Gun . | . . . . . Ballistic Cannon . | . . . . . Launcher 3 | . 2 1 . . Special Weapon 1 | . . 1 . . Impact Weapon . | . . . . . Slashing Weapon . | . . . . . Piercing Weapon . | . . . . . Special Melee Weapon . | . . . . . Unidentified Prototypes . | . . . . . Parts Lost 9 | . . 2 . 7 Power 2 | . . . . 2 Propulsion 2 | . . . . 2 Utility 1 | . . . . 1 Weapon 4 | . . 2 . 2 Highest Loss Streak 7 | . . 1 . 7 Average Slot Usage (%) 98 | . 100 99 100 89 Engine 13 | . 14 14 14 12 Treads 24 | . 18 22 28 24 Wheel 3 | . 9 5 . . Storage 14 | . 24 14 14 14 Protection 12 | . 2 14 14 12 Energy Gun 26 | . 22 26 28 24 Launcher 1 | . 5 1 . . Naked Turns . | . . . . . Heaviest Build 76 | 14 76 47 46 46 Greatest Support 40 | 20 40 40 40 40 Greatest Overweight (x) 4 | . 4 2 1 1 Average Overweight (x) 1 | . 2 1 1 1 Largest Inventory Capacity 20 | 6 20 12 12 12 Average Capacity 12 | 6 17 12 12 12 Most Carried 17 | 6 17 12 12 12 Average Carried 11 | 5 11 11 11 11 Final Capacity 12 | 6 12 12 12 12 Final Carried 12 | 4 12 12 12 11 Class Distribution -------------------- 90% | Mutant 9% | Hauler-Mutant Dominant Class ---------------- Hauler-Mutant | -10/Materials Mutant | -10/Mines Mutant | -10/Exiles Mutant | -9/Mines Resources | -11 -10 -10 -10 -9 ----------- Run | Scr Mat Min Exi Min Matter Collected 552 | 246 70 195 . 41 Remotely . | . . . . . Salvage Created 541 | 113 76 257 . 95 Parts 36 | 8 7 19 . 2 Haulers Intercepted . | . . . . . Recyclers Shooed . | . . . . . Parts Field Recycled . | . . . . . Retrieved Matter . | . . . . . Parts Self-Destructed . | . . . . . Prevented . | . . . . . Kills | -11 -10 -10 -10 -9 ------- Run | Scr Mat Min Exi Min Combat Hostiles Destroyed 15 | . 3 11 . 1 Guns 7 | . . 7 . . AOE 7 | . 3 4 . . Classes Destroyed 7 | 2 2 3 . . Worker 3 | . . 3 . . Tunneler 2 | 2 . . . . Recycler 2 | 1 1 . . . Watcher 1 | . 1 . . . Swarmer 9 | . 3 6 . . Grunt 4 | . . 3 . 1 Assembled 2 | . . 2 . . Thug 1 | . . . . 1 Best Kill Streak 4 | 1 4 3 . 1 Combat Bots Only 3 | . 3 3 . 1 Max Kills in Single Turn 3 | 1 3 2 . 1 Gunslinging . | . . . . . Exploded 2 | . 2 2 . . Melee . | . . . . . Uniques/NPCs Destroyed . | . . . . . Combat | -11 -10 -10 -10 -9 -------- Run | Scr Mat Min Exi Min Damage Taken 1046 | . 75 348 . 623 Core 259 | . 17 82 . 160 Absorbed by Shields . | . . . . . Core Remaining (%) 100 | 100 . . . . Volleys Fired 66 | 7 6 31 . 22 Largest 2 | 2 2 2 . 2 Hottest 105 | 100 100 100 . 105 Shots Fired 118 | 14 8 52 . 44 Gun 106 | 14 4 44 . 44 Cannon . | . . . . . Launcher 7 | . 4 3 . . Special 5 | . . 5 . . Kinetic 6 | 6 . . . . Thermal 105 | 8 4 49 . 44 Explosive 7 | . 4 3 . . Electromagnetic . | . . . . . Robot Hit Streak 16 | 3 2 8 . 16 Robot Miss Streak 2 | 2 2 2 . 2 Penetration Max . | . . . . . Secondary Targets 2 | . . 1 . 1 Max Gunslinging Chain 1 | . . 1 . 1 Shots Hit Robots 76 | 8 2 29 . 37 Core Hits 42 | 4 6 20 . 12 Critical Hits . | . . . . . Critical Kills . | . . . . . Critical Parts Destroyed . | . . . . . Melee Attacks . | . . . . . Impact . | . . . . . Slashing . | . . . . . Piercing . | . . . . . Sneak Attacks . | . . . . . Combat Hostiles . | . . . . . Follow-up Attacks . | . . . . . Damage Inflicted 1455 | 114 231 602 . 508 Guns 916 | 114 26 306 . 470 Cannons . | . . . . . Explosions 440 | . 205 235 . . Melee . | . . . . . Ramming 99 | . . 61 . 38 Kinetic 26 | 26 . . . . Thermal 890 | 88 26 306 . 470 Explosive 440 | . 205 235 . . Electromagnetic . | . . . . . Impact . | . . . . . Slashing . | . . . . . Piercing . | . . . . . Highest Corruption . | . . . . . Average Corruption . | . . . . . Corruption Purged . | . . . . . Overload Shots . | . . . . . Overflow Damage 5 | . . 5 . . Projectiles . | . . . . . Explosions . | . . . . . Melee 5 | . . 5 . . Knockbacks 1 | . . 1 . . Impact 1 | . . 1 . . Kinetic . | . . . . . Secondary . | . . . . . Self-Inflicted Damage 41 | . 41 . . . Shots 2 | . 2 . . . Rammed 19 | . . 4 . 15 Targets Rammed 20 | . . 5 . 15 Kicked . | . . . . . Crushed 1 | . . 1 . . Highest Temperature 539 | 60 51 306 . 539 Average Temperature 133 | 25 24 107 . 190 Received Heat Transfer 420 | . . 75 . 345 Effects 7 | . . . . 7 Shutdowns 1 | . . . . 1 Energy Bleed 1 | . . . . 1 Matter Decay 1 | . . . . 1 Short Circuit 1 | . . . . 1 Damage (minor) 1 | . . . . 1 Damage (major) 2 | . . . . 2 Siege Activations . | . . . . . Robots Corrupted . | . . . . . Combat Hostiles . | . . . . . Parts Fried . | . . . . . Impact Corruptions 1 | . . 1 . . Robots Melted 1 | . . . . 1 Combat Hostiles 1 | . . . . 1 Parts Melted 1 | . . . . 1 Heat Transferred 2302 | 259 74 853 . 1116 Parts Sabotaged . | . . . . . Parts Stolen . | . . . . . Parts Stripped . | . . . . . Power Chain Reactions . | . . . . . Missiles Intercepted . | . . . . . Alert | -11 -10 -10 -10 -9 ------- Run | Scr Mat Min Exi Min Peak Influence 258 | 15 106 258 . 50 Initial 40 | . 9 40 . . Average 68 | 9 58 82 . 23 Maximum Alert Level 1 | . . 1 . . Low Security (%) 92 | 100 100 89 . 100 Level 1 7 | . . 10 . . Level 2 . | . . . . . Level 3 . | . . . . . Level 4 . | . . . . . Level 5 . | . . . . . High Security . | . . . . . Max Security . | . . . . . Squads Dispatched . | . . . . . Investigation . | . . . . . Extermination . | . . . . . Reinforcement . | . . . . . Assault . | . . . . . Garrison . | . . . . . Intercept . | . . . . . Construction Impeded . | . . . . . Haulers Reinforced . | . . . . . Stealth | -11 -10 -10 -10 -9 --------- Run | Scr Mat Min Exi Min Distress Signals 2 | . . 2 . . Communications Jammed . | . . . . . Distress Signals . | . . . . . Times Spotted 25 | . 5 12 . 8 Peak Tracking Total 4 | . 4 3 . 4 Tactical Retreats 3 | . . 1 . 2 Traps | -11 -10 -10 -10 -9 ------- Run | Scr Mat Min Exi Min Traps Triggered . | . . . . . Indirectly . | . . . . . Trap Hack Attempts . | . . . . . Triggered . | . . . . . Disarmed . | . . . . . Reprogrammed . | . . . . . Reused . | . . . . . Traps Extracted . | . . . . . Installed . | . . . . . Triggered . | . . . . . Machines | -11 -10 -10 -10 -9 ---------- Run | Scr Mat Min Exi Min Machines Disabled . | . . . . . Max in Single Turn . | . . . . . Machines Sabotaged . | . . . . . Garrisons Compromised . | . . . . . Overloaded Fab Kills . | . . . . . Fab Network Shutdowns . | . . . . . Hacking | -11 -10 -10 -10 -9 --------- Run | Scr Mat Min Exi Min Machines Accessed 3 | . . . 3 . Terminals . | . . . . . Fabricators . | . . . . . Repair Stations . | . . . . . Recycling Units . | . . . . . Scanalyzers . | . . . . . Garrison Access . | . . . . . Total Hacks 3 | . . . 3 . Successful 3 | . . . 3 . Failed . | . . . . . Catastrophic . | . . . . . Database Lockouts . | . . . . . Manual 2 | . . . 2 . Terminals . | . . . . . Fabricators . | . . . . . Repair Stations . | . . . . . Recycling Units . | . . . . . Scanalyzers . | . . . . . Garrison Access . | . . . . . Terminal Hacks 3 | . . . 3 . Record 3 | . . . 3 . Fabricator Hacks . | . . . . . Repair Station Hacks . | . . . . . Recycling Unit Hacks . | . . . . . Scanalyzer . | . . . . . Garrison Access Hacks . | . . . . . Unauthorized Hacks . | . . . . . Terminals . | . . . . . Fabricators . | . . . . . Repair Stations . | . . . . . Recycling Units . | . . . . . Scanalyzers . | . . . . . Garrison Access . | . . . . . Data Cores Recovered . | . . . . . Used . | . . . . . Hacking Detections . | . . . . . Full Trace Events . | . . . . . Feedback Events . | . . . . . Feedback Blocked . | . . . . . Robot Schematics Acquired . | . . . . . Robots Built . | . . . . . Matter . | . . . . . Time . | . . . . . Total Robot Build Rating . | . . . . . Part Schematics Acquired . | . . . . . Parts Built . | . . . . . Matter . | . . . . . Time . | . . . . . Total Part Build Rating . | . . . . . Parts Repaired . | . . . . . Time . | . . . . . Parts Recycled . | . . . . . Recycled Matter . | . . . . . Retrieved Matter . | . . . . . Retrieved Components . | . . . . . Parts Scanalyzed . | . . . . . Part Schematics Acquired . | . . . . . Parts Damaged . | . . . . . Bothacking | -11 -10 -10 -10 -9 ------------ Run | Scr Mat Min Exi Min Used RIF Installer . | . . . . . Robots Hacked . | . . . . . Non-combat . | . . . . . Combat . | . . . . . Robot Hacks Applied . | . . . . . Relay Couplers Released . | . . . . . Robots Rewired . | . . . . . Allies Hacked . | . . . . . Hacks Repelled . | . . . . . Allies | -11 -10 -10 -10 -9 -------- Run | Scr Mat Min Exi Min Total Allies 1 | . . 1 . . Largest Group 1 | . . 1 . . Highest-Rated Group 31 | . . 31 . . Highest-Rated Ally 31 | . . 31 . . Total Orders . | . . . . . Ally Attacks 8 | . . 8 . . Total Damage 125 | . . 125 . . Kills 2 | . . 2 . . Allies Corrupted . | . . . . . Allies Melted . | . . . . . Intel | -11 -10 -10 -10 -9 ------- Run | Scr Mat Min Exi Min Robot Analysis Total . | . . . . . Derelict Logs Recovered 3 | . . 1 . 2 Drone Launches . | . . . . . Drone Recoveries . | . . . . . Exploration | -11 -10 -10 -10 -9 ------------- Run | Scr Mat Min Exi Min Turns Passed 2793 | 76 250 1334 871 262 Spaces Moved 1466 | 30 139 740 484 73 Core . | . . . . . Treads 1031 | . 39 435 484 73 Legs 19 | 19 . . . . Wheels 416 | 11 100 305 . . Hover . | . . . . . Flight . | . . . . . Fastest Speed 100 | 100 100 120 180 180 Average Speed 162 | 112 144 155 180 180 Slowest Speed 180 | 120 180 180 180 180 Overloaded Moves . | . . . . . Propulsion Burnouts . | . . . . . Robots Hopped . | . . . . . Cave-ins Triggered . | . . . . . Exploration Rate (%) 43 | 4 28 94 72 17 Regions Visited 4 Branch Regions 3 Pre-discovered Areas 4 | . . 3 . 1 Known Exits Taken . | . . . . . Unknown Exits Taken 4 | 1 1 1 1 . Scrap Searched 1 | . . 1 . . Spaces Dug 7 | . 7 . . . Terrain Destroyed 42 | . 23 19 . . Melee . | . . . . . Projectile . | . . . . . AOE 42 | . 23 19 . . Terrain Rammed . | . . . . . Walls Destroyed . | . . . . . Machines Disabled . | . . . . . Actions | -11 -10 -10 -10 -9 --------- Run | Scr Mat Min Exi Min Total 1718 | 59 181 859 485 134 Wait 105 | 15 3 65 . 22 Move 1462 | 29 138 739 483 73 Hop . | . . . . . Pick Up 19 | 1 13 4 1 . Fast Attach 5 | 1 2 2 . . Attach 5 | 2 1 1 . 1 Detach 2 | . 1 1 . . Swap 16 | 1 8 6 . 1 Drop 18 | 3 9 5 1 . Fire 66 | 7 6 31 . 22 Melee . | . . . . . Ram 3 | . . . . 3 Kick . | . . . . . Crush 17 | . . 5 . 12 Escape Stasis . | . . . . . Rewire . | . . . . . Trap . | . . . . . Miscellaneous . | . . . . . Route ------- -11/Scrapyard -10/Materials -10/Mines (discovered 3 exits: [*Mat x2] / *Exi) -10/Exiles -9/Mines History --------- Turn | Location | Event 13 | -11/Scrapyard | Discovered new exit (range 2) 77 | -11/Scrapyard | Entered Materials 249 | -10/Materials | Discovered new exit (range 9) 327 | -10/Materials | Entered Mines 327 | -10/Mines | Discovered new exit (range 14) 330 | -10/Mines | Escorted by a lone wolf Derelict 350 | -10/Mines | Learned location of Storage (-9) 499 | -10/Mines | Excavation squad dispatched 499 | -10/Mines | A large section of the Mines collapsed 542 | -10/Mines | Deemed a non-threat by the Exiles lab entrance 542 | -10/Mines | Discovered new exit (range 5) 574 | -10/Mines | Build established: Mutant 957 | -10/Mines | Learned location of Zion (-7) 1364 | -10/Mines | Found a hidden stash of uninstalled traps 1373 | -10/Mines | Discovered new exit (range 15) 1661 | -10/Mines | Entered Exiles 1661 | -10/Exiles | Found Exiles lab abandoned 2518 | -10/Exiles | Discovered new exit (range 10) 2532 | -10/Exiles | Entered Mines 2552 | -9/Mines | Met a Derelict bent on vengeance 2716 | -9/Mines | Core integrity fell below 50% 2745 | -9/Mines | Learned Materials non-interactive machine intel 2785 | -9/Mines | Core integrity fell below 20% 2794 | -9/Mines | Destroyed by G-47 Trooper with Particle Gun Last Messages --------------- 02743_ Overheating: Energy bleed (-20). 02744_ Power failure, Imp. Ion Engine shutdown. 02744_ Acquired 41 matter. 02745_ Particle Gun destroyed. 02745_ Acquired derelict log, extracted data. Data stored: Materials non-interactive machine intel. 02746_ K-01 Serf collects debris. 02754_ Slammed into G-34 Mercenary. 02755_ K-01 Serf collects debris. 02756_ Slammed into G-34 Mercenary. 02757_ Lgt. Treads destroyed. 02758_ Slammed into G-34 Mercenary. 02765_ Lgt. Armor Plating destroyed. 02766_ K-01 Serf collects debris. 02766_ Slammed into G-34 Mercenary. 02773_ Sml. Laser destroyed. 02773_ Slammed into G-34 Mercenary. 02776_ Lgt. Treads destroyed. 02777_ Slammed into G-34 Mercenary. 02792_ Imp. Ion Engine destroyed. Map ----- +----------------------------------------------------+ | ??????????????????##### ##?###????????????????? | | ????????????????????## ##??# ????????????????? | | ????????????????????# #???# #????????????????? | | ????????????????????# #???# #????????????????? | | ????????????????????## ##???# #????????????????? | | ?????????????????????### #????# #????????????????? | | ???????????##?????????## ###### #????????????????? | | ???????????? ????????# % #????????????????? | | ??????????# ???????# ########????????????????? | | ??????????? ?????## #??###??????????????????? | | ???????????? """ ####% #?# ##?????????????????? | | ???????????? """ ! ## #?????????????????? | | ??????????# """ ### t #?????????????????? | | ??????????# """ ### % #?????????????????? | | ??????????# u ##?????????????????? | | ???? ##??????????????????? | | ?????????# ###### ##???????????????????? | | ?????????# ????????## ##????????????????????? | | ?????????????????????## ##???###???????????????? | | ??????????????????????###%#??## ##??????????????? | | ????????????????????????# #?## ####???????????? | | ????????????????????????# ### #???????????? | | ????????????????????????# #??????????????? | | ??????????## #??????????#%#### ##??????????????? | | ??????????? ??????#g#### #???????????????? | | ???????????????# ###@%% g #???????????????? | | ????????????????# %g%#### #???????????????? | | ????????????????# #####%##??## ##???????????????? | | ???????????????????????# #?????##????????????????? | | ???????????????????????# #???????????????????????? | | ???????????????????????# #???????????????????????? | | ???????????????????????# ???????????????????????? | | ???????????????????????# #???????????????????????? | | ??????????????????????? #???????????????????????? | | ??????????????????????? ???????????????????????? | | ??????????????????????? ???????????????????????? | | ??????????????????????? ???????????????????????? | | ??????????????????????? ???????????????????????? | | ???????????????????????# ???????????????????????? | | ????????????????????????# ???????????????????????? | | ?????????????????????????#???????????????????????? | | ?????????????????????????????????????????????????? | | ?????????????????????????????????????????????????? | | ?????????????????????????????????????????????????? | | ?????????????????????????????????????????????????? | | ?????????????????????????????????????????????????? | | | | | | | | | +----------------------------------------------------+ Best States ------------- Heat Dissipation 25 Energy Generation 12 Energy Capacity 265 Matter Stores 300 Matter Capacity 300 Sight Range 16 Terrain Scan Range 16 Terrain Scan Density 10 Armor Coverage 150 Evasion (%) 40 Recoil Reduction 2 Item Schematics ----------------- None Robot Schematics ------------------ None Fabricated ------------ Nothing Alien Tech Used ----------------- None Achievements -------------- None Challenges ------------ None Game ------ Seed PlasmaDispersionWheel Manual? 0 Play Time 00:21:35 Cumulative 326.2 hours Start 2022.01.24 @ 13:04:55 End 2022.01.24 @ 13:55:51 Sessions 1 Manual Loads 0 Difficulty Rogue Special Mode None Game No. 251 Rogue 251 Adventurer 0 Explorer 0 Win Type - Total 6 Types 5/0/1/0/0/0/0/0/0 Lore% 54 Gallery% 78 Achievement% 62 Wizard Run 0 Options --------- ASCII 0 Keyboard 0 Movement Numpad Keybinds 0 Fullscreen 2 Font 18/TerminusBold Map View 76x50 Tactical HUD 1 Map Filters NONE Filters NONE Steam 1 RUN: 930633cd-c6c0-43cc-a6c2-69d5ad5d8eb4